fUST/lending_fUST_20251018
["ID","MTS","AMOUNT","RATE_DAILY","PERIOD"]
[391660878,1760722250403,-151.0,0.00027951,2]
[391660880,1760722250412,-151.0,0.00027951,2]
[391660882,1760722250422,-151.0,0.00027951,2]
[391660884,1760722250430,-151.0,0.00027951,2]
[391660886,1760722250440,-151.0,0.00027951,2]
[391660888,1760722250449,-151.0,0.00027951,2]
[391660890,1760722250457,-151.0,0.00027956,7]
[391660892,1760722250467,-151.0,0.00027956,7]
[391660894,1760722250476,-151.0,0.00027956,7]
[391660896,1760722250485,-151.0,0.00027956,7]
[391660898,1760722250494,-151.0,0.00027956,7]
[391660900,1760722250503,-151.0,0.00027956,7]
[391660902,1760722250512,-151.0,0.00027956,7]
[391660904,1760722250521,-256.380812,0.00027956,7]
[391660906,1760722250530,-151.0,0.00027956,30]
[391660908,1760722250538,-151.0,0.00027956,30]
[391660910,1760722250547,-311.653461,0.00027956,30]
[391660912,1760722250556,-311.653461,0.00027956,30]
[391660914,1760722250565,-311.653461,0.00027956,30]
[391660916,1760722250575,-311.653461,0.00027956,30]
[391660918,1760722250585,-311.653461,0.00027956,30]
[391660920,1760722250595,-311.653461,0.00027956,30]
[391660922,1760722250604,-151.0,0.00027956,30]
[391660923,1760722250613,-311.653461,0.00027956,30]
[391660925,1760722250622,-154.947176,0.00027956,30]
[391660927,1760722250631,-311.653461,0.00027956,30]
[391660931,1760722250665,-151.0,0.00027956,30]
[391660932,1760722250675,-151.0,0.00027956,30]
[391660934,1760722250684,-151.0,0.00027956,30]
[391660937,1760722250694,-151.0,0.00027956,30]
[391660938,1760722250703,-167.858338,0.00027956,30]
[391660940,1760722250713,-151.0,0.00027956,30]
[391660942,1760722250722,-151.0,0.00027956,30]
[391660944,1760722250731,-151.0,0.00027956,30]
[391660946,1760722250741,-151.0,0.00027956,30]
[391660948,1760722250750,-151.0,0.00027956,30]
[391660950,1760722250759,-156.286576,0.00027956,30]
[391660952,1760722250770,-171.069342,0.00027956,30]
[391660954,1760722250780,-171.069342,0.00027956,30]
[391660956,1760722250789,-171.069342,0.00027956,30]
[391660958,1760722250797,-171.069342,0.00027956,30]
[391660960,1760722250806,-171.069342,0.00027956,30]
[391660962,1760722250815,-171.069342,0.00027956,30]
[391660964,1760722250825,-171.069342,0.00027956,30]
[391660966,1760722250834,-151.0,0.00027956,30]
[391660968,1760722250843,-241.571953,0.00027956,30]
[391660970,1760722250852,-171.069342,0.00027956,30]
[391660972,1760722250861,-171.069342,0.00027956,30]
[391660974,1760722250870,-171.069342,0.00027956,30]
[391660976,1760722250880,-171.069342,0.00027956,30]
[391660978,1760722250889,-229.536777,0.00027956,30]
[391660980,1760722250898,-171.069342,0.00027956,30]
[391660982,1760722250908,-229.536777,0.00027956,30]
[391660984,1760722250917,-229.536777,0.00027956,30]
[391660986,1760722250926,-229.536777,0.00027956,30]
[391660988,1760722250936,-229.536777,0.00027956,30]
[391660990,1760722250945,-229.536777,0.00027956,30]
[391660992,1760722250954,-229.536777,0.00027956,30]
[391660994,1760722250963,-229.536777,0.00027956,30]
[391660996,1760722250973,-229.536777,0.00027956,30]
[391660998,1760722250983,-229.536777,0.00027956,30]
[391661000,1760722250992,-229.536777,0.00027956,30]
[391661002,1760722251001,-229.536777,0.00027956,30]
[391661004,1760722251011,-151.0,0.00027956,30]
[391661006,1760722251020,-151.0,0.00027956,30]
[391661008,1760722251029,-151.0,0.00027956,30]
[391661010,1760722251038,-151.0,0.00027956,30]
[391661012,1760722251047,-151.0,0.00027956,30]
[391661014,1760722251056,-151.0,0.00027956,30]
[391661016,1760722251065,-151.0,0.00027956,30]
[391661018,1760722251074,-294.070154,0.00027956,30]
[391661020,1760722251083,-151.0,0.00027956,30]
[391661022,1760722251092,-151.0,0.00027956,30]
[391661024,1760722251101,-151.0,0.00027956,30]
[391661026,1760722251110,-151.0,0.00027956,30]
[391661028,1760722251119,-151.0,0.00027956,30]
[391661030,1760722251128,-151.0,0.00027956,30]
[391661032,1760722251138,-214.91134,0.00027956,30]
[391661033,1760722251147,-214.91134,0.00027956,30]
[391661034,1760722251156,-214.91134,0.00027956,30]
[391661035,1760722251165,-214.91134,0.00027956,30]
[391661036,1760722251174,-214.91134,0.00027956,30]
[391661037,1760722251184,-214.91134,0.00027956,30]
[391661038,1760722251193,-214.91134,0.00027956,30]
[391661039,1760722251203,-214.91134,0.00027956,30]
[391661040,1760722251212,-214.91134,0.00027956,30]
[391661041,1760722251222,-214.91134,0.00027956,30]
[391661042,1760722251232,-214.91134,0.00027956,30]
[391661043,1760722251242,-214.91134,0.00027956,30]
[391661044,1760722251251,-151.0,0.00027956,30]
[391661045,1760722251265,-151.0,0.00027956,30]
[391661046,1760722251275,-151.0,0.00027956,30]
[391661048,1760722251284,-151.0,0.00027956,30]
[391661050,1760722251293,-299.238287,0.00027956,30]
[391661052,1760722251304,-151.0,0.00027956,30]
[391661054,1760722251313,-151.0,0.00027956,30]
[391661056,1760722251323,-4084.27078244,0.00027958,2]
[391661058,1760722251336,-151.0,0.00027963,7]
[391661060,1760722251345,-151.0,0.00027963,7]
[391661062,1760722251354,-151.0,0.00027963,7]
[391661064,1760722251364,-151.0,0.00027963,30]
[391661066,1760722251373,-311.653461,0.00027963,30]
[391661067,1760722251382,-311.653461,0.00027963,30]
[391661069,1760722251391,-311.653461,0.00027963,30]
[391661071,1760722251400,-311.653461,0.00027963,30]
[391661080,1760722251476,-151.0,0.00027963,30]
[391661082,1760722251486,-151.0,0.00027963,30]
[391661084,1760722251495,-151.0,0.00027963,30]
[391661086,1760722251504,-151.0,0.00027963,30]
[391661088,1760722251513,-171.069342,0.00027963,30]
[391661090,1760722251523,-171.069342,0.00027963,30]
[391661092,1760722251532,-171.069342,0.00027963,30]
[391661094,1760722251542,-171.069344,0.00027963,30]
[391661096,1760722251552,-229.536777,0.00027963,30]
[391661098,1760722251561,-229.536777,0.00027963,30]
[391661100,1760722251570,-229.536777,0.00027963,30]
[391661102,1760722251579,-229.53678379,0.00027963,30]
[391661104,1760722251588,-151.0,0.00027963,30]
[391661106,1760722251597,-151.0,0.00027963,30]
[391661108,1760722251606,-151.0,0.00027963,30]
[391661110,1760722251615,-151.0,0.00027963,30]
[391661112,1760722251624,-214.91134,0.00027963,30]
[391661114,1760722251633,-214.91134,0.00027963,30]
[391661116,1760722251642,-214.91134,0.00027963,30]
[391661118,1760722251651,-214.911347,0.00027963,30]
[391661120,1760722251660,-152.988708,0.00027963,30]
[391661122,1760722251670,-166.163069,0.00027963,30]
[391661124,1760722251678,-151.0,0.00027963,30]
[391661126,1760722251687,-151.0,0.00027963,30]
[391661128,1760722251696,-151.0,0.00027963,30]
[391661130,1760722251706,-151.0,0.00027963,30]
[391661132,1760722251715,-151.0,0.00027967,30]
[391661134,1760722251725,-151.0,0.00027967,30]
[391661136,1760722251734,-151.0,0.00027967,30]
[391661138,1760722251745,-151.0,0.00027967,30]
[391661140,1760722251754,-151.0,0.00027967,30]
[391661142,1760722251764,-151.0,0.00027967,30]
[391661144,1760722251774,-235.563625,0.00027967,30]
[391661146,1760722251783,-151.0,0.00027967,30]
[391661148,1760722251794,-151.0,0.00027967,30]
[391661150,1760722251803,-151.0,0.00027967,30]
[391661152,1760722251813,-151.0,0.00027967,30]
[391661153,1760722251822,-151.0,0.00027967,30]
[391661155,1760722251831,-151.0,0.00027967,30]
[391661157,1760722251841,-151.0,0.00027967,30]
[391661159,1760722251850,-152.748089,0.00027967,30]
[391661161,1760722251860,-151.0,0.00027967,30]
[391661163,1760722251869,-151.0,0.00027967,30]
[391661165,1760722251878,-151.0,0.00027967,30]
[391661167,1760722251888,-151.0,0.00027967,30]
[391661169,1760722251897,-151.0,0.00027967,30]
[391661171,1760722251907,-151.0,0.00027967,30]
[391661173,1760722251915,-151.0,0.00027967,30]
[391661175,1760722251925,-151.0,0.00027967,30]
[391661177,1760722251933,-151.0,0.00027967,30]
[391661179,1760722251943,-151.0,0.00027967,30]
[391661181,1760722251952,-151.0,0.00027967,30]
[391661183,1760722251961,-151.0,0.00027967,30]
[391661185,1760722251970,-153.04346,0.00027967,30]
[391661187,1760722251979,-151.0,0.00027967,30]
[391661189,1760722251988,-151.0,0.00027967,30]
[391661191,1760722251997,-151.0,0.00027967,30]
[391661193,1760722252006,-151.0,0.00027967,30]
[391661195,1760722252015,-151.0,0.00027967,30]
[391661197,1760722252026,-151.0,0.00027967,30]
[391661199,1760722252034,-238.212583,0.00027967,30]
[391661201,1760722252043,-151.0,0.00027967,7]
[391661203,1760722252052,-151.0,0.00027967,7]
[391661205,1760722252061,-151.0,0.00027967,7]
[391661207,1760722252070,-151.0,0.00027967,30]
[391661209,1760722252079,-151.0,0.00027967,30]
[391661210,1760722252088,-155.789219,0.00027967,30]
[391661212,1760722252097,-311.653461,0.00027967,30]
[391661214,1760722252107,-311.653461,0.00027967,30]
[391661216,1760722252116,-311.653461,0.00027967,30]
[391661218,1760722252126,-311.653466,0.00027967,30]
[391661220,1760722252135,-151.0,0.00027967,30]
[391661222,1760722252144,-151.0,0.00027967,30]
[391661224,1760722252153,-151.0,0.00027967,30]
[391661226,1760722252162,-151.0,0.00027968,30]
[391661228,1760722252171,-151.0,0.00027968,30]
[391661230,1760722252181,-153.190108,0.00027968,30]
[391661232,1760722252191,-151.0,0.00027968,30]
[391661234,1760722252200,-151.0,0.00027968,30]
[391661236,1760722252209,-151.0,0.00027968,30]
[391661239,1760722252219,-151.0,0.00027968,30]
[391661241,1760722252228,-151.0,0.00027968,30]
[391661243,1760722252238,-152.83499,0.00027968,30]
[391661244,1760722252247,-151.0,0.00027968,30]
[391661246,1760722252261,-500.0,0.00027968,10]
[391661248,1760722252269,-151.0,0.00027968,30]
[391661250,1760722252278,-151.0,0.00027968,30]
[391661252,1760722252288,-151.0,0.00027968,30]
[391661254,1760722252298,-151.0,0.00027968,30]
[391661256,1760722252308,-151.0,0.00027968,30]
[391661258,1760722252317,-151.0,0.00027968,30]
[391661260,1760722252327,-151.0,0.00027968,30]
[391661262,1760722252338,-151.0,0.00027968,30]
[391661264,1760722252346,-151.0,0.00027968,30]
[391661266,1760722252355,-153.035335,0.00027968,30]
[391661268,1760722252364,-500.0,0.00027968,10]
[391661270,1760722252373,-181.84226932,0.00027969,18]
[391661272,1760722252383,-4084.27078244,0.00027969,2]
[391661274,1760722252392,-200.285,0.00027969,18]
[391661276,1760722252401,-151.0,0.0002797,30]
[391661278,1760722252410,-151.0,0.0002797,30]
[391661280,1760722252419,-151.0,0.0002797,30]
[391661282,1760722252428,-151.0,0.0002797,30]
[391661284,1760722252437,-151.0,0.0002797,30]
[391661286,1760722252446,-151.0,0.0002797,30]
[391661288,1760722252457,-151.0,0.0002797,30]
[391661290,1760722252466,-153.397918,0.0002797,30]
[391661292,1760722252475,-151.0,0.0002797,30]
[391661294,1760722252484,-186.379349,0.0002797,30]
[391661296,1760722252493,-151.0,0.0002797,30]
[391661298,1760722252503,-151.0,0.0002797,30]
[391661300,1760722252512,-151.0,0.0002797,30]
[391661302,1760722252522,-151.0,0.0002797,30]
[391661304,1760722252532,-151.0,0.0002797,30]
[391661306,1760722252541,-151.0,0.0002797,30]
[391661308,1760722252551,-151.0,0.0002797,30]
[391661310,1760722252560,-500.0,0.00027973,5]
[391661312,1760722252569,-500.0,0.00027973,5]
[391661314,1760722252579,-500.0,0.00027973,5]
[391661316,1760722252589,-500.0,0.00027973,5]
[391661324,1760722252651,-500.0,0.00027973,5]
[391661326,1760722252666,-500.0,0.00027973,5]
[391661328,1760722252676,-500.0,0.00027973,5]
[391661330,1760722252685,-500.0,0.00027973,5]
[391661332,1760722252694,-500.0,0.00027973,5]
[391661334,1760722252703,-500.0,0.00027973,5]
[391661336,1760722252712,-500.0,0.00027973,5]
[391661338,1760722252721,-500.0,0.00027973,5]
[391661340,1760722252730,-500.0,0.00027973,5]
[391661342,1760722252739,-500.0,0.00027973,5]
[391661344,1760722252748,-500.0,0.00027973,5]
[391661346,1760722252757,-500.0,0.00027973,5]
[391661348,1760722252766,-500.63111784,0.00027973,5]
[391661350,1760722252775,-500.0,0.00027973,5]
[391661352,1760722252784,-500.0,0.00027973,5]
[391661354,1760722252793,-507.14701524,0.00027973,5]
[391661356,1760722252802,-500.0,0.00027973,5]
[391661358,1760722252812,-500.0,0.00027973,5]
[391661360,1760722252821,-500.0,0.00027973,5]
[391661362,1760722252830,-500.0,0.00027973,4]
[391661364,1760722252839,-500.0,0.00027973,5]
[391661366,1760722252848,-500.0,0.00027973,5]
[391661367,1760722252858,-500.0,0.00027973,5]
[391661369,1760722252867,-531.13383981,0.00027973,5]
[391661372,1760722252878,-500.0,0.00027973,5]
[391661374,1760722252888,-500.0,0.00027973,5]
[391661376,1760722252898,-221.03097837,0.00027973,5]
[391661378,1760722252907,-500.0,0.00027973,5]
[391661380,1760722252917,-500.0,0.00027973,5]
[391661382,1760722252926,-500.0,0.00027973,2]
[391661384,1760722252935,-500.0,0.00027973,5]
[391661386,1760722252944,-500.0,0.00027973,5]
[391661387,1760722252953,-500.0,0.00027973,5]
[391661389,1760722252963,-173.19107875,0.00027973,5]
[391661391,1760722252972,-500.0,0.00027973,5]
[391661393,1760722252982,-500.0,0.00027973,5]
[391661395,1760722252991,-151.0,0.00027978,30]
[391661397,1760722253000,-151.0,0.00027978,30]
[391661399,1760722253010,-166.231944,0.00027978,30]
[391661401,1760722253020,-602.34,0.00027978,7]
[391661403,1760722253030,-154.473212,0.00027978,30]
[391661405,1760722253040,-151.0,0.00027978,30]
[391661407,1760722253050,-151.0,0.00027978,30]
[391661409,1760722253059,-151.0,0.00027978,30]
[391661411,1760722253068,-174.9948,0.00027978,30]
[391661413,1760722253078,-151.0,0.00027978,30]
[391661415,1760722253087,-151.0,0.00027978,30]
[391661417,1760722253097,-151.0,0.00027979,30]
[391661419,1760722253105,-151.0,0.00027979,30]
[391661421,1760722253115,-151.0,0.00027979,30]
[391661423,1760722253124,-151.0,0.00027979,30]
[391661425,1760722253134,-153.082619,0.00027979,30]
[391661427,1760722253144,-151.0,0.00027979,30]
[391661429,1760722253153,-151.0,0.00027979,30]
[391661431,1760722253162,-158.787088,0.00027979,30]
[391661433,1760722253171,-151.0,0.00027979,30]
[391661435,1760722253181,-151.0,0.00027979,30]
[391661437,1760722253190,-151.0,0.00027979,30]
[391661439,1760722253200,-151.0,0.00027979,30]
[391661441,1760722253210,-151.0,0.00027979,30]
[391661443,1760722253219,-151.0,0.00027979,30]
[391661445,1760722253229,-152.332522,0.00027979,30]
[391661447,1760722253239,-151.0,0.00027979,30]
[391661449,1760722253249,-151.0,0.00027979,30]
[391661451,1760722253263,-151.0,0.00027979,30]
[391661453,1760722253272,-151.0,0.00027979,30]
[391661455,1760722253282,-151.0,0.00027979,30]
[391661457,1760722253292,-151.0,0.00027979,30]
[391661459,1760722253302,-151.0,0.00027979,30]
[391661461,1760722253312,-151.0,0.00027979,30]
[391661463,1760722253321,-151.0,0.00027979,30]
[391661465,1760722253332,-151.0,0.00027979,30]
[391661467,1760722253341,-151.0,0.00027979,30]
[391661469,1760722253351,-151.0,0.00027979,30]
[391661471,1760722253360,-151.0,0.00027979,30]
[391661473,1760722253370,-152.629698,0.00027979,30]
[391661475,1760722253379,-151.0,0.00027979,30]
[391661477,1760722253389,-151.0,0.00027979,30]
[391661479,1760722253398,-153.208589,0.00027979,30]
[391661481,1760722253407,-153.471273,0.00027979,30]
[391661483,1760722253417,-151.0,0.00027979,30]
[391661485,1760722253426,-151.0,0.00027979,30]
[391661487,1760722253436,-500.0,0.00027979,2]
[391661489,1760722253445,-150.0,0.00027979,2]
[391661491,1760722253454,-200.0,0.00027979,10]
[391661493,1760722253463,-201.4637601,0.00027979,10]
[391661495,1760722253472,-151.0,0.0002798,30]
[391661497,1760722253482,-151.0,0.0002798,30]
[391661499,1760722253491,-151.0,0.0002798,30]
[391661501,1760722253500,-166.745229,0.0002798,30]
[391661503,1760722253510,-151.0,0.0002798,30]
[391661505,1760722253519,-151.0,0.0002798,30]
[391661507,1760722253528,-151.0,0.0002798,30]
[391661509,1760722253539,-151.0,0.0002798,30]
[391661511,1760722253550,-151.0,0.0002798,30]
[391661513,1760722253559,-151.0,0.0002798,30]
[391661515,1760722253568,-151.0,0.0002798,30]
[391661517,1760722253578,-151.0,0.0002798,30]
[391661519,1760722253587,-154.608134,0.0002798,30]
[391661521,1760722253597,-221.817193,0.0002798,30]
[391661523,1760722253607,-151.0,0.0002798,30]
[391661525,1760722253616,-151.0,0.0002798,30]
[391661527,1760722253625,-151.0,0.0002798,30]
[391661529,1760722253635,-151.0,0.0002798,30]
[391661531,1760722253644,-151.0,0.0002798,30]
[391661533,1760722253654,-151.0,0.0002798,30]
[391661535,1760722253663,-151.0,0.0002798,30]
[391661537,1760722253672,-151.0,0.0002798,30]
[391661539,1760722253682,-154.073443,0.0002798,30]
[391661541,1760722253691,-151.0,0.0002798,30]
[391661543,1760722253701,-151.0,0.0002798,30]
[391661547,1760722253768,-151.0,0.0002798,30]
[391661549,1760722253780,-151.0,0.0002798,30]
[391661551,1760722253790,-151.0,0.0002798,30]
[391661553,1760722253799,-160.272504,0.0002798,30]
[391661555,1760722253809,-485.0,0.00027983,5]
[391661557,1760722253818,-198.03362766,0.00027983,5]
[391661559,1760722253827,-524.0,0.00027983,5]
[391661561,1760722253837,-1394.17374042,0.00027994,2]
[391661563,1760722253847,-151.0,0.00028,14]
[391661565,1760722253856,-151.0,0.00028,13]
[391661567,1760722253866,-151.0,0.00028,13]
[391661569,1760722253876,-151.0,0.00028,14]
[391661571,1760722253885,-151.0,0.00028,19]
[391661573,1760722253895,-485.0,0.00028037,5]
[391661575,1760722253904,-524.0,0.00028037,5]
[391661577,1760722253914,-531.13955632,0.00028084,5]
[391661579,1760722253924,-485.0,0.00028092,5]
[391661581,1760722253934,-524.0,0.00028092,5]
[391661583,1760722253943,-151.0,0.000281,18]
[391661585,1760722253952,-151.0,0.000281,14]
[391661587,1760722253961,-151.0,0.000281,20]
[391661589,1760722253970,-151.0,0.000281,14]
[391661591,1760722253979,-485.0,0.00028147,5]
[391661593,1760722253988,-524.0,0.00028147,5]
[391661595,1760722253999,-166.0,0.0002819,2]
[391661597,1760722254008,-21513.87502507,0.0002819,2]
[391661599,1760722254018,-500.0,0.00028195,10]
[391661601,1760722254030,-151.0,0.000282,12]
[391661603,1760722254039,-151.0,0.000282,14]
[391661605,1760722254048,-151.0,0.000282,13]
[391661607,1760722254058,-151.0,0.000282,13]
[391661609,1760722254068,-485.0,0.00028202,5]
[391661611,1760722254078,-524.0,0.00028202,5]
[391661613,1760722254088,-500.0,0.00028205,30]
[391661615,1760722254097,-293.95360273,0.00028205,2]
[391661617,1760722254108,-4084.27078244,0.00028211,2]
[391661619,1760722254117,-9437.1475008,0.0002822,2]
[391661621,1760722254129,-1000.0,0.00028221,5]
[391661623,1760722254139,-1000.0,0.00028221,5]
[391661625,1760722254148,-1000.0,0.00028221,5]
[391661627,1760722254158,-187.87137488,0.00028221,5]
[391661629,1760722254167,-1000.0,0.00028221,2]
[391661631,1760722254176,-500.8958455,0.00028221,2]
[391661633,1760722254186,-501.00973805,0.00028221,5]
[391661635,1760722254195,-1128.01011479,0.00028221,5]
[391661637,1760722254205,-1000.0,0.00028221,5]
[391661639,1760722254215,-821.53753827,0.00028221,5]
[391661641,1760722254226,-1000.0,0.00028221,5]
[391661643,1760722254236,-1000.0,0.00028221,5]
[391661645,1760722254245,-1000.0,0.00028221,5]
[391661647,1760722254256,-588.44976397,0.00028221,5]
[391661649,1760722254268,-1000.0,0.00028221,5]
[391661651,1760722254280,-1000.0,0.00028221,5]
[391661652,1760722254291,-1000.0,0.00028221,5]
[391661655,1760722254302,-1000.0,0.00028221,2]
[391661657,1760722254312,-1000.0,0.00028221,5]
[391661659,1760722254322,-500.0,0.00028221,5]
[391661661,1760722254332,-1000.0,0.00028221,5]
[391661663,1760722254344,-1000.0,0.00028221,5]
[391661664,1760722254354,-1000.0,0.00028221,5]
[391661667,1760722254364,-1000.0,0.00028221,5]
[391661669,1760722254375,-1000.0,0.00028221,5]
[391661671,1760722254385,-1000.0,0.00028221,5]
[391661673,1760722254395,-1000.0,0.00028221,5]
[391661675,1760722254405,-416.1102459,0.00028221,5]
[391661677,1760722254415,-1000.0,0.00028221,5]
[391661679,1760722254425,-1000.0,0.00028221,5]
[391661681,1760722254436,-786.95507616,0.00028221,5]
[391661683,1760722254445,-405.24828615,0.00028221,5]
[391661685,1760722254455,-1000.0,0.00028221,5]
[391661687,1760722254464,-572.06807098,0.00028221,5]
[391661689,1760722254474,-1000.0,0.00028221,5]
[391661691,1760722254484,-1000.0,0.00028221,5]
[391661692,1760722254493,-805.0,0.00028222,2]
[391661694,1760722254503,-500.0,0.00028242,10]
[391661696,1760722254512,-500.0,0.00028242,10]
[391661698,1760722254523,-155.0,0.00028247,28]
[391661700,1760722254532,-150.0,0.00028248,2]
[391661702,1760722254542,-602.34,0.00028252,8]
[391661704,1760722254551,-485.0,0.00028257,5]
[391661707,1760722254561,-524.0,0.00028257,5]
[391661708,1760722254571,-257.290725,0.00028289,30]
[391661710,1760722254580,-151.0,0.00028289,30]
[391661712,1760722254591,-151.879279,0.00028289,30]
[391661713,1760722254600,-805.0,0.00028289,2]
[391661715,1760722254610,-386.14394342,0.00028295,4]
[391661717,1760722254620,-715.21882599,0.00028295,4]
[391661719,1760722254630,-2860.87530395,0.00028295,4]
[391661721,1760722254640,-6436.96943388,0.00028295,4]
[391661723,1760722254650,-832.12747466,0.00028295,4]
[391661725,1760722254660,-3328.50989865,0.00028295,4]
[391661727,1760722254670,-151.0,0.000283,11]
[391661729,1760722254679,-151.0,0.000283,17]
[391661731,1760722254689,-339.946226,0.000283,30]
[391661733,1760722254698,-194.412652,0.000283,30]
[391661735,1760722254708,-485.0,0.00028311,5]
[391661737,1760722254717,-524.0,0.00028311,5]
[391661739,1760722254727,-1000.0,0.00028332,5]
[391661741,1760722254737,-485.0,0.00028366,5]
[391661743,1760722254746,-524.0,0.00028366,5]
[391661745,1760722254756,-3691.0,0.00028383,7]
[391661747,1760722254765,-151.0,0.000284,20]
[391661755,1760722254831,-151.0,0.000284,16]
[391661757,1760722254841,-1394.17374044,0.00028405,2]
[391661759,1760722254851,-4084.27078244,0.00028411,2]
[391661761,1760722254860,-1000.0,0.00028421,5]
[391661763,1760722254870,-1000.0,0.00028421,5]
[391661765,1760722254878,-500.46856268,0.00028421,5]
[391661767,1760722254887,-1131.41911268,0.00028421,5]
[391661768,1760722254898,-1000.0,0.00028421,5]
[391661770,1760722254908,-1000.0,0.00028421,5]
[391661772,1760722254918,-1000.0,0.00028421,5]
[391661774,1760722254927,-1000.82357862,0.00028421,5]
[391661776,1760722254937,-1000.0,0.00028421,5]
[391661778,1760722254947,-1000.0,0.00028421,5]
[391661780,1760722254956,-1000.0,0.00028421,5]
[391661782,1760722254966,-1000.0,0.00028421,5]
[391661784,1760722254975,-501.2396458,0.00028421,5]
[391661786,1760722254985,-609.34623017,0.00028421,5]
[391661788,1760722254995,-342.14594912,0.00028421,5]
[391661790,1760722255004,-257.53428227,0.00028421,5]
[391661791,1760722255013,-485.0,0.00028421,5]
[391661793,1760722255024,-524.0,0.00028421,5]
[391661795,1760722255035,-260.0,0.00028448,2]
[391661798,1760722255044,-151.0,0.00028453,30]
[391661800,1760722255054,-546.5895589,0.00028465,2]
[391661802,1760722255064,-540.0051474,0.00028468,2]
[391661804,1760722255073,-27046.4600975,0.00028468,2]
[391661806,1760722255083,-500.0,0.00028469,10]
[391661808,1760722255093,-1356.1873774,0.00028469,2]
[391661810,1760722255103,-150.0,0.00028473,5]
[391661812,1760722255113,-485.0,0.00028476,5]
[391661814,1760722255122,-524.0,0.00028476,5]
[391661816,1760722255131,-500.0,0.00028479,30]
[391661817,1760722255140,-5198.48,0.00028479,4]
[391661819,1760722255150,-157.59,0.00028496,2]
[391661822,1760722255160,-4084.27078244,0.00028498,2]
[391661824,1760722255170,-151.0,0.00028499,30]
[391661825,1760722255179,-208.94317369,0.00028499,2]
[391661827,1760722255189,-151.0,0.000285,14]
[391661829,1760722255199,-52292.00281918,0.000285,7]
[391661831,1760722255208,-1000.0,0.00028508,2]
[391661833,1760722255218,-1000.0,0.00028508,2]
[391661835,1760722255227,-1000.0,0.00028508,2]
[391661837,1760722255236,-1000.0,0.00028508,2]
[391661839,1760722255245,-1000.0,0.00028508,2]
[391661841,1760722255256,-1000.0,0.00028509,2]
[391661843,1760722255267,-1000.0,0.00028509,2]
[391661845,1760722255278,-1000.0,0.00028509,2]
[391661847,1760722255287,-1000.0,0.00028509,2]
[391661849,1760722255297,-1000.0,0.00028509,2]
[391661851,1760722255306,-1000.0,0.00028509,2]
[391661853,1760722255316,-408.33,0.00028509,2]
[391661855,1760722255325,-158.76874796,0.00028521,5]
[391661857,1760722255335,-173.84620991,0.00028521,5]
[391661859,1760722255344,-1000.0,0.00028521,5]
[391661861,1760722255354,-1002.07321109,0.00028521,5]
[391661863,1760722255363,-410.0063782,0.00028521,5]
[391661865,1760722255372,-422.41260686,0.00028521,5]
[391661867,1760722255381,-1000.0,0.00028521,5]
[391661868,1760722255391,-1000.0,0.00028521,5]
[391661870,1760722255403,-1000.0,0.00028521,5]
[391661872,1760722255413,-1009.12688671,0.00028521,5]
[391661874,1760722255423,-1000.0,0.00028521,5]